{"text_format":"1","workbook":"xlsx","n_sheets":6,"sheets":["MujSeznam","SerazenySeznam","Check","Generator","SeznamCetby","Poznamky"],"not_rendered":{"charts":0,"images":1,"macros":1,"external_links":0,"defined_names":0,"comments":0,"pivot_tables":0},"unopened":[],"bounds":{"document_bytes":16777216,"sheet_cells":100000,"rows_first":2000,"rows_last":500,"rows_between":2000,"halvings":0,"cell_chars":16384,"cell_head_chars":4096},"cells_cut":0,"cells_raw":0,"read":"whole","date_system":"1900"}

{"sheet":"MujSeznam","index":0,"n_rows":21,"n_cols":6,"rows_kept":21,"cut":false,"hidden":false,"merged":[]}
["Autor","Dílo","Století","Druh","Česká/Světová","Autor-Dilo"]
[{"$f":"IFERROR(VLOOKUP(MAX(EXACT(B2,Table2[Název díla])*(ROW(Table2[Název díla]))),CHOOSE({1,2},ROW(Table2[Název díla]),Table2[Autor]),2,0), \"\")","v":""},null,{"$f":"IFERROR(VLOOKUP(MAX(EXACT(B2,Table2[Název díla])*(ROW(Table2[Název díla]))),CHOOSE({1,2},ROW(Table2[Název díla]),Table2[Století]),2,0), \"\")","v":""},{"$f":"IFERROR(VLOOKUP(MAX(EXACT(B2,Table2[Název díla])*(ROW(Table2[Název díla]))),CHOOSE({1,2},ROW(Table2[Název díla]),Table2[Druh]),2,0), \"\")","v":""},{"$f":"IFERROR(VLOOKUP(MAX(EXACT(B2,Table2[Název díla])*(ROW(Table2[Název díla]))),CHOOSE({1,2},ROW(Table2[Název díla]),Table2[Původ]),2,0), \"\")","v":""},{"$f":"Table1[[#This Row],[Autor]]&\"-\"&Table1[[#This Row],[Dílo]]","v":"-"}]
[{"$f":"IFERROR(VLOOKUP(MAX(EXACT(B3,Table2[Název díla])*(ROW(Table2[Název díla]))),CHOOSE({1,2},ROW(Table2[Název díla]),Table2[Autor]),2,0), \"\")","v":""},null,{"$f":"IFERROR(VLOOKUP(MAX(EXACT(B3,Table2[Název díla])*(ROW(Table2[Název díla]))),CHOOSE({1,2},ROW(Table2[Název díla]),Table2[Století]),2,0), \"\")","v":""},{"$f":"IFERROR(VLOOKUP(MAX(EXACT(B3,Table2[Název díla])*(ROW(Table2[Název díla]))),CHOOSE({1,2},ROW(Table2[Název díla]),Table2[Druh]),2,0), \"\")","v":""},{"$f":"IFERROR(VLOOKUP(MAX(EXACT(B3,Table2[Název díla])*(ROW(Table2[Název díla]))),CHOOSE({1,2},ROW(Table2[Název díla]),Table2[Původ]),2,0), \"\")","v":""},{"$f":"Table1[[#This Row],[Autor]]&\"-\"&Table1[[#This Row],[Dílo]]","v":"-"}]
[{"$f":"IFERROR(VLOOKUP(MAX(EXACT(B4,Table2[Název díla])*(ROW(Table2[Název díla]))),CHOOSE({1,2},ROW(Table2[Název díla]),Table2[Autor]),2,0), \"\")","v":""},null,{"$f":"IFERROR(VLOOKUP(MAX(EXACT(B4,Table2[Název díla])*(ROW(Table2[Název díla]))),CHOOSE({1,2},ROW(Table2[Název díla]),Table2[Století]),2,0), \"\")","v":""},{"$f":"IFERROR(VLOOKUP(MAX(EXACT(B4,Table2[Název díla])*(ROW(Table2[Název díla]))),CHOOSE({1,2},ROW(Table2[Název díla]),Table2[Druh]),2,0), \"\")","v":""},{"$f":"IFERROR(VLOOKUP(MAX(EXACT(B4,Table2[Název díla])*(ROW(Table2[Název díla]))),CHOOSE({1,2},ROW(Table2[Název díla]),Table2[Původ]),2,0), \"\")","v":""},{"$f":"Table1[[#This Row],[Autor]]&\"-\"&Table1[[#This Row],[Dílo]]","v":"-"}]
[{"$f":"IFERROR(VLOOKUP(MAX(EXACT(B5,Table2[Název díla])*(ROW(Table2[Název díla]))),CHOOSE({1,2},ROW(Table2[Název díla]),Table2[Autor]),2,0), \"\")","v":""},null,{"$f":"IFERROR(VLOOKUP(MAX(EXACT(B5,Table2[Název díla])*(ROW(Table2[Název díla]))),CHOOSE({1,2},ROW(Table2[Název díla]),Table2[Století]),2,0), \"\")","v":""},{"$f":"IFERROR(VLOOKUP(MAX(EXACT(B5,Table2[Název díla])*(ROW(Table2[Název díla]))),CHOOSE({1,2},ROW(Table2[Název díla]),Table2[Druh]),2,0), \"\")","v":""},{"$f":"IFERROR(VLOOKUP(MAX(EXACT(B5,Table2[Název díla])*(ROW(Table2[Název díla]))),CHOOSE({1,2},ROW(Table2[Název díla]),Table2[Původ]),2,0), \"\")","v":""},{"$f":"Table1[[#This Row],[Autor]]&\"-\"&Table1[[#This Row],[Dílo]]","v":"-"}]
[{"$f":"IFERROR(VLOOKUP(MAX(EXACT(B6,Table2[Název díla])*(ROW(Table2[Název díla]))),CHOOSE({1,2},ROW(Table2[Název díla]),Table2[Autor]),2,0), \"\")","v":""},null,{"$f":"IFERROR(VLOOKUP(MAX(EXACT(B6,Table2[Název díla])*(ROW(Table2[Název díla]))),CHOOSE({1,2},ROW(Table2[Název díla]),Table2[Století]),2,0), \"\")","v":""},{"$f":"IFERROR(VLOOKUP(MAX(EXACT(B6,Table2[Název díla])*(ROW(Table2[Název díla]))),CHOOSE({1,2},ROW(Table2[Název díla]),Table2[Druh]),2,0), \"\")","v":""},{"$f":"IFERROR(VLOOKUP(MAX(EXACT(B6,Table2[Název díla])*(ROW(Table2[Název díla]))),CHOOSE({1,2},ROW(Table2[Název díla]),Table2[Původ]),2,0), \"\")","v":""},{"$f":"Table1[[#This Row],[Autor]]&\"-\"&Table1[[#This Row],[Dílo]]","v":"-"}]
[{"$f":"IFERROR(VLOOKUP(MAX(EXACT(B7,Table2[Název díla])*(ROW(Table2[Název díla]))),CHOOSE({1,2},ROW(Table2[Název díla]),Table2[Autor]),2,0), \"\")","v":""},null,{"$f":"IFERROR(VLOOKUP(MAX(EXACT(B7,Table2[Název díla])*(ROW(Table2[Název díla]))),CHOOSE({1,2},ROW(Table2[Název díla]),Table2[Století]),2,0), \"\")","v":""},{"$f":"IFERROR(VLOOKUP(MAX(EXACT(B7,Table2[Název díla])*(ROW(Table2[Název díla]))),CHOOSE({1,2},ROW(Table2[Název díla]),Table2[Druh]),2,0), \"\")","v":""},{"$f":"IFERROR(VLOOKUP(MAX(EXACT(B7,Table2[Název díla])*(ROW(Table2[Název díla]))),CHOOSE({1,2},ROW(Table2[Název díla]),Table2[Původ]),2,0), \"\")","v":""},{"$f":"Table1[[#This Row],[Autor]]&\"-\"&Table1[[#This Row],[Dílo]]","v":"-"}]
[{"$f":"IFERROR(VLOOKUP(MAX(EXACT(B8,Table2[Název díla])*(ROW(Table2[Název díla]))),CHOOSE({1,2},ROW(Table2[Název díla]),Table2[Autor]),2,0), \"\")","v":""},null,{"$f":"IFERROR(VLOOKUP(MAX(EXACT(B8,Table2[Název díla])*(ROW(Table2[Název díla]))),CHOOSE({1,2},ROW(Table2[Název díla]),Table2[Století]),2,0), \"\")","v":""},{"$f":"IFERROR(VLOOKUP(MAX(EXACT(B8,Table2[Název díla])*(ROW(Table2[Název díla]))),CHOOSE({1,2},ROW(Table2[Název díla]),Table2[Druh]),2,0), \"\")","v":""},{"$f":"IFERROR(VLOOKUP(MAX(EXACT(B8,Table2[Název díla])*(ROW(Table2[Název díla]))),CHOOSE({1,2},ROW(Table2[Název díla]),Table2[Původ]),2,0), \"\")","v":""},{"$f":"Table1[[#This Row],[Autor]]&\"-\"&Table1[[#This Row],[Dílo]]","v":"-"}]
[{"$f":"IFERROR(VLOOKUP(MAX(EXACT(B9,Table2[Název díla])*(ROW(Table2[Název díla]))),CHOOSE({1,2},ROW(Table2[Název díla]),Table2[Autor]),2,0), \"\")","v":""},null,{"$f":"IFERROR(VLOOKUP(MAX(EXACT(B9,Table2[Název díla])*(ROW(Table2[Název díla]))),CHOOSE({1,2},ROW(Table2[Název díla]),Table2[Století]),2,0), \"\")","v":""},{"$f":"IFERROR(VLOOKUP(MAX(EXACT(B9,Table2[Název díla])*(ROW(Table2[Název díla]))),CHOOSE({1,2},ROW(Table2[Název díla]),Table2[Druh]),2,0), \"\")","v":""},{"$f":"IFERROR(VLOOKUP(MAX(EXACT(B9,Table2[Název díla])*(ROW(Table2[Název díla]))),CHOOSE({1,2},ROW(Table2[Název díla]),Table2[Původ]),2,0), \"\")","v":""},{"$f":"Table1[[#This Row],[Autor]]&\"-\"&Table1[[#This Row],[Dílo]]","v":"-"}]
[{"$f":"IFERROR(VLOOKUP(MAX(EXACT(B10,Table2[Název díla])*(ROW(Table2[Název díla]))),CHOOSE({1,2},ROW(Table2[Název díla]),Table2[Autor]),2,0), \"\")","v":""},null,{"$f":"IFERROR(VLOOKUP(MAX(EXACT(B10,Table2[Název díla])*(ROW(Table2[Název díla]))),CHOOSE({1,2},ROW(Table2[Název díla]),Table2[Století]),2,0), \"\")","v":""},{"$f":"IFERROR(VLOOKUP(MAX(EXACT(B10,Table2[Název díla])*(ROW(Table2[Název díla]))),CHOOSE({1,2},ROW(Table2[Název díla]),Table2[Druh]),2,0), \"\")","v":""},{"$f":"IFERROR(VLOOKUP(MAX(EXACT(B10,Table2[Název díla])*(ROW(Table2[Název díla]))),CHOOSE({1,2},ROW(Table2[Název díla]),Table2[Původ]),2,0), \"\")","v":""},{"$f":"Table1[[#This Row],[Autor]]&\"-\"&Table1[[#This Row],[Dílo]]","v":"-"}]
[{"$f":"IFERROR(VLOOKUP(MAX(EXACT(B11,Table2[Název díla])*(ROW(Table2[Název díla]))),CHOOSE({1,2},ROW(Table2[Název díla]),Table2[Autor]),2,0), \"\")","v":""},null,{"$f":"IFERROR(VLOOKUP(MAX(EXACT(B11,Table2[Název díla])*(ROW(Table2[Název díla]))),CHOOSE({1,2},ROW(Table2[Název díla]),Table2[Století]),2,0), \"\")","v":""},{"$f":"IFERROR(VLOOKUP(MAX(EXACT(B11,Table2[Název díla])*(ROW(Table2[Název díla]))),CHOOSE({1,2},ROW(Table2[Název díla]),Table2[Druh]),2,0), \"\")","v":""},{"$f":"IFERROR(VLOOKUP(MAX(EXACT(B11,Table2[Název díla])*(ROW(Table2[Název díla]))),CHOOSE({1,2},ROW(Table2[Název díla]),Table2[Původ]),2,0), \"\")","v":""},{"$f":"Table1[[#This Row],[Autor]]&\"-\"&Table1[[#This Row],[Dílo]]","v":"-"}]
[{"$f":"IFERROR(VLOOKUP(MAX(EXACT(B12,Table2[Název díla])*(ROW(Table2[Název díla]))),CHOOSE({1,2},ROW(Table2[Název díla]),Table2[Autor]),2,0), \"\")","v":""},null,{"$f":"IFERROR(VLOOKUP(MAX(EXACT(B12,Table2[Název díla])*(ROW(Table2[Název díla]))),CHOOSE({1,2},ROW(Table2[Název díla]),Table2[Století]),2,0), \"\")","v":""},{"$f":"IFERROR(VLOOKUP(MAX(EXACT(B12,Table2[Název díla])*(ROW(Table2[Název díla]))),CHOOSE({1,2},ROW(Table2[Název díla]),Table2[Druh]),2,0), \"\")","v":""},{"$f":"IFERROR(VLOOKUP(MAX(EXACT(B12,Table2[Název díla])*(ROW(Table2[Název díla]))),CHOOSE({1,2},ROW(Table2[Název díla]),Table2[Původ]),2,0), \"\")","v":""},{"$f":"Table1[[#This Row],[Autor]]&\"-\"&Table1[[#This Row],[Dílo]]","v":"-"}]
[{"$f":"IFERROR(VLOOKUP(MAX(EXACT(B13,Table2[Název díla])*(ROW(Table2[Název díla]))),CHOOSE({1,2},ROW(Table2[Název díla]),Table2[Autor]),2,0), \"\")","v":""},null,{"$f":"IFERROR(VLOOKUP(MAX(EXACT(B13,Table2[Název díla])*(ROW(Table2[Název díla]))),CHOOSE({1,2},ROW(Table2[Název díla]),Table2[Století]),2,0), \"\")","v":""},{"$f":"IFERROR(VLOOKUP(MAX(EXACT(B13,Table2[Název díla])*(ROW(Table2[Název díla]))),CHOOSE({1,2},ROW(Table2[Název díla]),Table2[Druh]),2,0), \"\")","v":""},{"$f":"IFERROR(VLOOKUP(MAX(EXACT(B13,Table2[Název díla])*(ROW(Table2[Název díla]))),CHOOSE({1,2},ROW(Table2[Název díla]),Table2[Původ]),2,0), \"\")","v":""},{"$f":"Table1[[#This Row],[Autor]]&\"-\"&Table1[[#This Row],[Dílo]]","v":"-"}]
[{"$f":"IFERROR(VLOOKUP(MAX(EXACT(B14,Table2[Název díla])*(ROW(Table2[Název díla]))),CHOOSE({1,2},ROW(Table2[Název díla]),Table2[Autor]),2,0), \"\")","v":""},null,{"$f":"IFERROR(VLOOKUP(MAX(EXACT(B14,Table2[Název díla])*(ROW(Table2[Název díla]))),CHOOSE({1,2},ROW(Table2[Název díla]),Table2[Století]),2,0), \"\")","v":""},{"$f":"IFERROR(VLOOKUP(MAX(EXACT(B14,Table2[Název díla])*(ROW(Table2[Název díla]))),CHOOSE({1,2},ROW(Table2[Název díla]),Table2[Druh]),2,0), \"\")","v":""},{"$f":"IFERROR(VLOOKUP(MAX(EXACT(B14,Table2[Název díla])*(ROW(Table2[Název díla]))),CHOOSE({1,2},ROW(Table2[Název díla]),Table2[Původ]),2,0), \"\")","v":""},{"$f":"Table1[[#This Row],[Autor]]&\"-\"&Table1[[#This Row],[Dílo]]","v":"-"}]
[{"$f":"IFERROR(VLOOKUP(MAX(EXACT(B15,Table2[Název díla])*(ROW(Table2[Název díla]))),CHOOSE({1,2},ROW(Table2[Název díla]),Table2[Autor]),2,0), \"\")","v":""},null,{"$f":"IFERROR(VLOOKUP(MAX(EXACT(B15,Table2[Název díla])*(ROW(Table2[Název díla]))),CHOOSE({1,2},ROW(Table2[Název díla]),Table2[Století]),2,0), \"\")","v":""},{"$f":"IFERROR(VLOOKUP(MAX(EXACT(B15,Table2[Název díla])*(ROW(Table2[Název díla]))),CHOOSE({1,2},ROW(Table2[Název díla]),Table2[Druh]),2,0), \"\")","v":""},{"$f":"IFERROR(VLOOKUP(MAX(EXACT(B15,Table2[Název díla])*(ROW(Table2[Název díla]))),CHOOSE({1,2},ROW(Table2[Název díla]),Table2[Původ]),2,0), \"\")","v":""},{"$f":"Table1[[#This Row],[Autor]]&\"-\"&Table1[[#This Row],[Dílo]]","v":"-"}]
[{"$f":"IFERROR(VLOOKUP(MAX(EXACT(B16,Table2[Název díla])*(ROW(Table2[Název díla]))),CHOOSE({1,2},ROW(Table2[Název díla]),Table2[Autor]),2,0), \"\")","v":""},null,{"$f":"IFERROR(VLOOKUP(MAX(EXACT(B16,Table2[Název díla])*(ROW(Table2[Název díla]))),CHOOSE({1,2},ROW(Table2[Název díla]),Table2[Století]),2,0), \"\")","v":""},{"$f":"IFERROR(VLOOKUP(MAX(EXACT(B16,Table2[Název díla])*(ROW(Table2[Název díla]))),CHOOSE({1,2},ROW(Table2[Název díla]),Table2[Druh]),2,0), \"\")","v":""},{"$f":"IFERROR(VLOOKUP(MAX(EXACT(B16,Table2[Název díla])*(ROW(Table2[Název díla]))),CHOOSE({1,2},ROW(Table2[Název díla]),Table2[Původ]),2,0), \"\")","v":""},{"$f":"Table1[[#This Row],[Autor]]&\"-\"&Table1[[#This Row],[Dílo]]","v":"-"}]
[{"$f":"IFERROR(VLOOKUP(MAX(EXACT(B17,Table2[Název díla])*(ROW(Table2[Název díla]))),CHOOSE({1,2},ROW(Table2[Název díla]),Table2[Autor]),2,0), \"\")","v":""},null,{"$f":"IFERROR(VLOOKUP(MAX(EXACT(B17,Table2[Název díla])*(ROW(Table2[Název díla]))),CHOOSE({1,2},ROW(Table2[Název díla]),Table2[Století]),2,0), \"\")","v":""},{"$f":"IFERROR(VLOOKUP(MAX(EXACT(B17,Table2[Název díla])*(ROW(Table2[Název díla]))),CHOOSE({1,2},ROW(Table2[Název díla]),Table2[Druh]),2,0), \"\")","v":""},{"$f":"IFERROR(VLOOKUP(MAX(EXACT(B17,Table2[Název díla])*(ROW(Table2[Název díla]))),CHOOSE({1,2},ROW(Table2[Název díla]),Table2[Původ]),2,0), \"\")","v":""},{"$f":"Table1[[#This Row],[Autor]]&\"-\"&Table1[[#This Row],[Dílo]]","v":"-"}]
[{"$f":"IFERROR(VLOOKUP(MAX(EXACT(B18,Table2[Název díla])*(ROW(Table2[Název díla]))),CHOOSE({1,2},ROW(Table2[Název díla]),Table2[Autor]),2,0), \"\")","v":""},null,{"$f":"IFERROR(VLOOKUP(MAX(EXACT(B18,Table2[Název díla])*(ROW(Table2[Název díla]))),CHOOSE({1,2},ROW(Table2[Název díla]),Table2[Století]),2,0), \"\")","v":""},{"$f":"IFERROR(VLOOKUP(MAX(EXACT(B18,Table2[Název díla])*(ROW(Table2[Název díla]))),CHOOSE({1,2},ROW(Table2[Název díla]),Table2[Druh]),2,0), \"\")","v":""},{"$f":"IFERROR(VLOOKUP(MAX(EXACT(B18,Table2[Název díla])*(ROW(Table2[Název díla]))),CHOOSE({1,2},ROW(Table2[Název díla]),Table2[Původ]),2,0), \"\")","v":""},{"$f":"Table1[[#This Row],[Autor]]&\"-\"&Table1[[#This Row],[Dílo]]","v":"-"}]
[{"$f":"IFERROR(VLOOKUP(MAX(EXACT(B19,Table2[Název díla])*(ROW(Table2[Název díla]))),CHOOSE({1,2},ROW(Table2[Název díla]),Table2[Autor]),2,0), \"\")","v":""},null,{"$f":"IFERROR(VLOOKUP(MAX(EXACT(B19,Table2[Název díla])*(ROW(Table2[Název díla]))),CHOOSE({1,2},ROW(Table2[Název díla]),Table2[Století]),2,0), \"\")","v":""},{"$f":"IFERROR(VLOOKUP(MAX(EXACT(B19,Table2[Název díla])*(ROW(Table2[Název díla]))),CHOOSE({1,2},ROW(Table2[Název díla]),Table2[Druh]),2,0), \"\")","v":""},{"$f":"IFERROR(VLOOKUP(MAX(EXACT(B19,Table2[Název díla])*(ROW(Table2[Název díla]))),CHOOSE({1,2},ROW(Table2[Název díla]),Table2[Původ]),2,0), \"\")","v":""},{"$f":"Table1[[#This Row],[Autor]]&\"-\"&Table1[[#This Row],[Dílo]]","v":"-"}]
[{"$f":"IFERROR(VLOOKUP(MAX(EXACT(B20,Table2[Název díla])*(ROW(Table2[Název díla]))),CHOOSE({1,2},ROW(Table2[Název díla]),Table2[Autor]),2,0), \"\")","v":""},null,{"$f":"IFERROR(VLOOKUP(MAX(EXACT(B20,Table2[Název díla])*(ROW(Table2[Název díla]))),CHOOSE({1,2},ROW(Table2[Název díla]),Table2[Století]),2,0), \"\")","v":""},{"$f":"IFERROR(VLOOKUP(MAX(EXACT(B20,Table2[Název díla])*(ROW(Table2[Název díla]))),CHOOSE({1,2},ROW(Table2[Název díla]),Table2[Druh]),2,0), \"\")","v":""},{"$f":"IFERROR(VLOOKUP(MAX(EXACT(B20,Table2[Název díla])*(ROW(Table2[Název díla]))),CHOOSE({1,2},ROW(Table2[Název díla]),Table2[Původ]),2,0), \"\")","v":""},{"$f":"Table1[[#This Row],[Autor]]&\"-\"&Table1[[#This Row],[Dílo]]","v":"-"}]
[{"$f":"IFERROR(VLOOKUP(MAX(EXACT(B21,Table2[Název díla])*(ROW(Table2[Název díla]))),CHOOSE({1,2},ROW(Table2[Název díla]),Table2[Autor]),2,0), \"\")","v":""},null,{"$f":"IFERROR(VLOOKUP(MAX(EXACT(B21,Table2[Název díla])*(ROW(Table2[Název díla]))),CHOOSE({1,2},ROW(Table2[Název díla]),Table2[Století]),2,0), \"\")","v":""},{"$f":"IFERROR(VLOOKUP(MAX(EXACT(B21,Table2[Název díla])*(ROW(Table2[Název díla]))),CHOOSE({1,2},ROW(Table2[Název díla]),Table2[Druh]),2,0), \"\")","v":""},{"$f":"IFERROR(VLOOKUP(MAX(EXACT(B21,Table2[Název díla])*(ROW(Table2[Název díla]))),CHOOSE({1,2},ROW(Table2[Název díla]),Table2[Původ]),2,0), \"\")","v":""},{"$f":"Table1[[#This Row],[Autor]]&\"-\"&Table1[[#This Row],[Dílo]]","v":"-"}]

{"sheet":"SerazenySeznam","index":1,"n_rows":21,"n_cols":5,"rows_kept":21,"cut":false,"hidden":true,"merged":[]}
["Autor","Dílo","Století","Druh","Česká/Světová"]
[{"$f":"IFERROR(VLOOKUP(B2,SeznamCetby!A$3:E$63,2,FALSE),\"\")","v":""},{"$f":"IFERROR(INDEX(Table1[Dílo],MATCH(ROWS(MujSeznam!$A$2:'MujSeznam'!A2),COUNTIF(Table1[Autor-Dilo],\"<=\"&Table1[Autor-Dilo]),0)),\"\")","v":""},{"$f":"IFERROR(VLOOKUP(B2,SeznamCetby!A$3:E$63,3,FALSE),\"\")","v":""},{"$f":"IFERROR(VLOOKUP(B2,SeznamCetby!A$3:E$63,4,FALSE),\"\")","v":""},{"$f":"IFERROR(VLOOKUP(B2,SeznamCetby!A$3:E$63,5,FALSE),\"\")","v":""}]
[{"$f":"IFERROR(VLOOKUP(B3,SeznamCetby!A$3:E$63,2,FALSE),\"\")","v":""},{"$f":"IFERROR(INDEX(Table1[Dílo],MATCH(ROWS(MujSeznam!$A$2:'MujSeznam'!A3),COUNTIF(Table1[Autor-Dilo],\"<=\"&Table1[Autor-Dilo]),0)),\"\")","v":""},{"$f":"IFERROR(VLOOKUP(B3,SeznamCetby!A$3:E$63,3,FALSE),\"\")","v":""},{"$f":"IFERROR(VLOOKUP(B3,SeznamCetby!A$3:E$63,4,FALSE),\"\")","v":""},{"$f":"IFERROR(VLOOKUP(B3,SeznamCetby!A$3:E$63,5,FALSE),\"\")","v":""}]
[{"$f":"IFERROR(VLOOKUP(B4,SeznamCetby!A$3:E$63,2,FALSE),\"\")","v":""},{"$f":"IFERROR(INDEX(Table1[Dílo],MATCH(ROWS(MujSeznam!$A$2:'MujSeznam'!A4),COUNTIF(Table1[Autor-Dilo],\"<=\"&Table1[Autor-Dilo]),0)),\"\")","v":""},{"$f":"IFERROR(VLOOKUP(B4,SeznamCetby!A$3:E$63,3,FALSE),\"\")","v":""},{"$f":"IFERROR(VLOOKUP(B4,SeznamCetby!A$3:E$63,4,FALSE),\"\")","v":""},{"$f":"IFERROR(VLOOKUP(B4,SeznamCetby!A$3:E$63,5,FALSE),\"\")","v":""}]
[{"$f":"IFERROR(VLOOKUP(B5,SeznamCetby!A$3:E$63,2,FALSE),\"\")","v":""},{"$f":"IFERROR(INDEX(Table1[Dílo],MATCH(ROWS(MujSeznam!$A$2:'MujSeznam'!A5),COUNTIF(Table1[Autor-Dilo],\"<=\"&Table1[Autor-Dilo]),0)),\"\")","v":""},{"$f":"IFERROR(VLOOKUP(B5,SeznamCetby!A$3:E$63,3,FALSE),\"\")","v":""},{"$f":"IFERROR(VLOOKUP(B5,SeznamCetby!A$3:E$63,4,FALSE),\"\")","v":""},{"$f":"IFERROR(VLOOKUP(B5,SeznamCetby!A$3:E$63,5,FALSE),\"\")","v":""}]
[{"$f":"IFERROR(VLOOKUP(B6,SeznamCetby!A$3:E$63,2,FALSE),\"\")","v":""},{"$f":"IFERROR(INDEX(Table1[Dílo],MATCH(ROWS(MujSeznam!$A$2:'MujSeznam'!A6),COUNTIF(Table1[Autor-Dilo],\"<=\"&Table1[Autor-Dilo]),0)),\"\")","v":""},{"$f":"IFERROR(VLOOKUP(B6,SeznamCetby!A$3:E$63,3,FALSE),\"\")","v":""},{"$f":"IFERROR(VLOOKUP(B6,SeznamCetby!A$3:E$63,4,FALSE),\"\")","v":""},{"$f":"IFERROR(VLOOKUP(B6,SeznamCetby!A$3:E$63,5,FALSE),\"\")","v":""}]
[{"$f":"IFERROR(VLOOKUP(B7,SeznamCetby!A$3:E$63,2,FALSE),\"\")","v":""},{"$f":"IFERROR(INDEX(Table1[Dílo],MATCH(ROWS(MujSeznam!$A$2:'MujSeznam'!A7),COUNTIF(Table1[Autor-Dilo],\"<=\"&Table1[Autor-Dilo]),0)),\"\")","v":""},{"$f":"IFERROR(VLOOKUP(B7,SeznamCetby!A$3:E$63,3,FALSE),\"\")","v":""},{"$f":"IFERROR(VLOOKUP(B7,SeznamCetby!A$3:E$63,4,FALSE),\"\")","v":""},{"$f":"IFERROR(VLOOKUP(B7,SeznamCetby!A$3:E$63,5,FALSE),\"\")","v":""}]
[{"$f":"IFERROR(VLOOKUP(B8,SeznamCetby!A$3:E$63,2,FALSE),\"\")","v":""},{"$f":"IFERROR(INDEX(Table1[Dílo],MATCH(ROWS(MujSeznam!$A$2:'MujSeznam'!A8),COUNTIF(Table1[Autor-Dilo],\"<=\"&Table1[Autor-Dilo]),0)),\"\")","v":""},{"$f":"IFERROR(VLOOKUP(B8,SeznamCetby!A$3:E$63,3,FALSE),\"\")","v":""},{"$f":"IFERROR(VLOOKUP(B8,SeznamCetby!A$3:E$63,4,FALSE),\"\")","v":""},{"$f":"IFERROR(VLOOKUP(B8,SeznamCetby!A$3:E$63,5,FALSE),\"\")","v":""}]
[{"$f":"IFERROR(VLOOKUP(B9,SeznamCetby!A$3:E$63,2,FALSE),\"\")","v":""},{"$f":"IFERROR(INDEX(Table1[Dílo],MATCH(ROWS(MujSeznam!$A$2:'MujSeznam'!A9),COUNTIF(Table1[Autor-Dilo],\"<=\"&Table1[Autor-Dilo]),0)),\"\")","v":""},{"$f":"IFERROR(VLOOKUP(B9,SeznamCetby!A$3:E$63,3,FALSE),\"\")","v":""},{"$f":"IFERROR(VLOOKUP(B9,SeznamCetby!A$3:E$63,4,FALSE),\"\")","v":""},{"$f":"IFERROR(VLOOKUP(B9,SeznamCetby!A$3:E$63,5,FALSE),\"\")","v":""}]
[{"$f":"IFERROR(VLOOKUP(B10,SeznamCetby!A$3:E$63,2,FALSE),\"\")","v":""},{"$f":"IFERROR(INDEX(Table1[Dílo],MATCH(ROWS(MujSeznam!$A$2:'MujSeznam'!A10),COUNTIF(Table1[Autor-Dilo],\"<=\"&Table1[Autor-Dilo]),0)),\"\")","v":""},{"$f":"IFERROR(VLOOKUP(B10,SeznamCetby!A$3:E$63,3,FALSE),\"\")","v":""},{"$f":"IFERROR(VLOOKUP(B10,SeznamCetby!A$3:E$63,4,FALSE),\"\")","v":""},{"$f":"IFERROR(VLOOKUP(B10,SeznamCetby!A$3:E$63,5,FALSE),\"\")","v":""}]
[{"$f":"IFERROR(VLOOKUP(B11,SeznamCetby!A$3:E$63,2,FALSE),\"\")","v":""},{"$f":"IFERROR(INDEX(Table1[Dílo],MATCH(ROWS(MujSeznam!$A$2:'MujSeznam'!A11),COUNTIF(Table1[Autor-Dilo],\"<=\"&Table1[Autor-Dilo]),0)),\"\")","v":""},{"$f":"IFERROR(VLOOKUP(B11,SeznamCetby!A$3:E$63,3,FALSE),\"\")","v":""},{"$f":"IFERROR(VLOOKUP(B11,SeznamCetby!A$3:E$63,4,FALSE),\"\")","v":""},{"$f":"IFERROR(VLOOKUP(B11,SeznamCetby!A$3:E$63,5,FALSE),\"\")","v":""}]
[{"$f":"IFERROR(VLOOKUP(B12,SeznamCetby!A$3:E$63,2,FALSE),\"\")","v":""},{"$f":"IFERROR(INDEX(Table1[Dílo],MATCH(ROWS(MujSeznam!$A$2:'MujSeznam'!A12),COUNTIF(Table1[Autor-Dilo],\"<=\"&Table1[Autor-Dilo]),0)),\"\")","v":""},{"$f":"IFERROR(VLOOKUP(B12,SeznamCetby!A$3:E$63,3,FALSE),\"\")","v":""},{"$f":"IFERROR(VLOOKUP(B12,SeznamCetby!A$3:E$63,4,FALSE),\"\")","v":""},{"$f":"IFERROR(VLOOKUP(B12,SeznamCetby!A$3:E$63,5,FALSE),\"\")","v":""}]
[{"$f":"IFERROR(VLOOKUP(B13,SeznamCetby!A$3:E$63,2,FALSE),\"\")","v":""},{"$f":"IFERROR(INDEX(Table1[Dílo],MATCH(ROWS(MujSeznam!$A$2:'MujSeznam'!A13),COUNTIF(Table1[Autor-Dilo],\"<=\"&Table1[Autor-Dilo]),0)),\"\")","v":""},{"$f":"IFERROR(VLOOKUP(B13,SeznamCetby!A$3:E$63,3,FALSE),\"\")","v":""},{"$f":"IFERROR(VLOOKUP(B13,SeznamCetby!A$3:E$63,4,FALSE),\"\")","v":""},{"$f":"IFERROR(VLOOKUP(B13,SeznamCetby!A$3:E$63,5,FALSE),\"\")","v":""}]
[{"$f":"IFERROR(VLOOKUP(B14,SeznamCetby!A$3:E$63,2,FALSE),\"\")","v":""},{"$f":"IFERROR(INDEX(Table1[Dílo],MATCH(ROWS(MujSeznam!$A$2:'MujSeznam'!A14),COUNTIF(Table1[Autor-Dilo],\"<=\"&Table1[Autor-Dilo]),0)),\"\")","v":""},{"$f":"IFERROR(VLOOKUP(B14,SeznamCetby!A$3:E$63,3,FALSE),\"\")","v":""},{"$f":"IFERROR(VLOOKUP(B14,SeznamCetby!A$3:E$63,4,FALSE),\"\")","v":""},{"$f":"IFERROR(VLOOKUP(B14,SeznamCetby!A$3:E$63,5,FALSE),\"\")","v":""}]
[{"$f":"IFERROR(VLOOKUP(B15,SeznamCetby!A$3:E$63,2,FALSE),\"\")","v":""},{"$f":"IFERROR(INDEX(Table1[Dílo],MATCH(ROWS(MujSeznam!$A$2:'MujSeznam'!A15),COUNTIF(Table1[Autor-Dilo],\"<=\"&Table1[Autor-Dilo]),0)),\"\")","v":""},{"$f":"IFERROR(VLOOKUP(B15,SeznamCetby!A$3:E$63,3,FALSE),\"\")","v":""},{"$f":"IFERROR(VLOOKUP(B15,SeznamCetby!A$3:E$63,4,FALSE),\"\")","v":""},{"$f":"IFERROR(VLOOKUP(B15,SeznamCetby!A$3:E$63,5,FALSE),\"\")","v":""}]
[{"$f":"IFERROR(VLOOKUP(B16,SeznamCetby!A$3:E$63,2,FALSE),\"\")","v":""},{"$f":"IFERROR(INDEX(Table1[Dílo],MATCH(ROWS(MujSeznam!$A$2:'MujSeznam'!A16),COUNTIF(Table1[Autor-Dilo],\"<=\"&Table1[Autor-Dilo]),0)),\"\")","v":""},{"$f":"IFERROR(VLOOKUP(B16,SeznamCetby!A$3:E$63,3,FALSE),\"\")","v":""},{"$f":"IFERROR(VLOOKUP(B16,SeznamCetby!A$3:E$63,4,FALSE),\"\")","v":""},{"$f":"IFERROR(VLOOKUP(B16,SeznamCetby!A$3:E$63,5,FALSE),\"\")","v":""}]
[{"$f":"IFERROR(VLOOKUP(B17,SeznamCetby!A$3:E$63,2,FALSE),\"\")","v":""},{"$f":"IFERROR(INDEX(Table1[Dílo],MATCH(ROWS(MujSeznam!$A$2:'MujSeznam'!A17),COUNTIF(Table1[Autor-Dilo],\"<=\"&Table1[Autor-Dilo]),0)),\"\")","v":""},{"$f":"IFERROR(VLOOKUP(B17,SeznamCetby!A$3:E$63,3,FALSE),\"\")","v":""},{"$f":"IFERROR(VLOOKUP(B17,SeznamCetby!A$3:E$63,4,FALSE),\"\")","v":""},{"$f":"IFERROR(VLOOKUP(B17,SeznamCetby!A$3:E$63,5,FALSE),\"\")","v":""}]
[{"$f":"IFERROR(VLOOKUP(B18,SeznamCetby!A$3:E$63,2,FALSE),\"\")","v":""},{"$f":"IFERROR(INDEX(Table1[Dílo],MATCH(ROWS(MujSeznam!$A$2:'MujSeznam'!A18),COUNTIF(Table1[Autor-Dilo],\"<=\"&Table1[Autor-Dilo]),0)),\"\")","v":""},{"$f":"IFERROR(VLOOKUP(B18,SeznamCetby!A$3:E$63,3,FALSE),\"\")","v":""},{"$f":"IFERROR(VLOOKUP(B18,SeznamCetby!A$3:E$63,4,FALSE),\"\")","v":""},{"$f":"IFERROR(VLOOKUP(B18,SeznamCetby!A$3:E$63,5,FALSE),\"\")","v":""}]
[{"$f":"IFERROR(VLOOKUP(B19,SeznamCetby!A$3:E$63,2,FALSE),\"\")","v":""},{"$f":"IFERROR(INDEX(Table1[Dílo],MATCH(ROWS(MujSeznam!$A$2:'MujSeznam'!A19),COUNTIF(Table1[Autor-Dilo],\"<=\"&Table1[Autor-Dilo]),0)),\"\")","v":""},{"$f":"IFERROR(VLOOKUP(B19,SeznamCetby!A$3:E$63,3,FALSE),\"\")","v":""},{"$f":"IFERROR(VLOOKUP(B19,SeznamCetby!A$3:E$63,4,FALSE),\"\")","v":""},{"$f":"IFERROR(VLOOKUP(B19,SeznamCetby!A$3:E$63,5,FALSE),\"\")","v":""}]
[{"$f":"IFERROR(VLOOKUP(B20,SeznamCetby!A$3:E$63,2,FALSE),\"\")","v":""},{"$f":"IFERROR(INDEX(Table1[Dílo],MATCH(ROWS(MujSeznam!$A$2:'MujSeznam'!A20),COUNTIF(Table1[Autor-Dilo],\"<=\"&Table1[Autor-Dilo]),0)),\"\")","v":""},{"$f":"IFERROR(VLOOKUP(B20,SeznamCetby!A$3:E$63,3,FALSE),\"\")","v":""},{"$f":"IFERROR(VLOOKUP(B20,SeznamCetby!A$3:E$63,4,FALSE),\"\")","v":""},{"$f":"IFERROR(VLOOKUP(B20,SeznamCetby!A$3:E$63,5,FALSE),\"\")","v":""}]
[{"$f":"IFERROR(VLOOKUP(B21,SeznamCetby!A$3:E$63,2,FALSE),\"\")","v":""},{"$f":"IFERROR(INDEX(Table1[Dílo],MATCH(ROWS(MujSeznam!$A$2:'MujSeznam'!A21),COUNTIF(Table1[Autor-Dilo],\"<=\"&Table1[Autor-Dilo]),0)),\"\")","v":0},{"$f":"IFERROR(VLOOKUP(B21,SeznamCetby!A$3:E$63,3,FALSE),\"\")","v":""},{"$f":"IFERROR(VLOOKUP(B21,SeznamCetby!A$3:E$63,4,FALSE),\"\")","v":""},{"$f":"IFERROR(VLOOKUP(B21,SeznamCetby!A$3:E$63,5,FALSE),\"\")","v":""}]

{"sheet":"Check","index":2,"n_rows":22,"n_cols":9,"rows_kept":22,"cut":false,"hidden":false,"merged":[[9,6,10,8]]}
["Autoři","Poezie","Próza","Drama","Celkem",null,"Kritérium","Minimum","Splněno"]
[{"$f":"IFERROR(INDEX(Table3[Autor],MATCH(0,COUNTIF($A$1:A1,Table3[Autor]),0)),\"\")","v":""},{"$f":"COUNTIFS(Table1[Autor],Check!$A2,Table1[Druh],Check!B$1)","v":0},{"$f":"COUNTIFS(Table1[Autor],Check!$A2,Table1[Druh],Check!C$1)","v":0},{"$f":"COUNTIFS(Table1[Autor],Check!$A2,Table1[Druh],Check!D$1)","v":0},{"$f":"SUM(B2:D2)","v":0},null,"Světová a česká literatura do konce 18. stol",2,{"$f":"COUNTIF(MujSeznam!$C$2:$C$21,\"<=18\")","v":0}]
[{"$f":"IFERROR(INDEX(Table3[Autor],MATCH(0,COUNTIF($A$1:A2,Table3[Autor]),0)),\"\")","v":""},{"$f":"COUNTIFS(Table1[Autor],Check!$A3,Table1[Druh],Check!B$1)","v":0},{"$f":"COUNTIFS(Table1[Autor],Check!$A3,Table1[Druh],Check!C$1)","v":0},{"$f":"COUNTIFS(Table1[Autor],Check!$A3,Table1[Druh],Check!D$1)","v":0},{"$f":"SUM(B3:D3)","v":0},null,"Světová a česká literatura 19 stol",3,{"$f":"COUNTIF(MujSeznam!$C$2:$C$21,\"19\")","v":0}]
[{"$f":"IFERROR(INDEX(Table3[Autor],MATCH(0,COUNTIF($A$1:A3,Table3[Autor]),0)),\"\")","v":""},{"$f":"COUNTIFS(Table1[Autor],Check!$A4,Table1[Druh],Check!B$1)","v":0},{"$f":"COUNTIFS(Table1[Autor],Check!$A4,Table1[Druh],Check!C$1)","v":0},{"$f":"COUNTIFS(Table1[Autor],Check!$A4,Table1[Druh],Check!D$1)","v":0},0,null,"Světová literatura 20. a 21. stol",4,{"$f":"COUNTIFS(MujSeznam!C2:C21,\">=20\",MujSeznam!$E$2:$E$21,\"světová\")","v":0}]
[{"$f":"IFERROR(INDEX(Table3[Autor],MATCH(0,COUNTIF($A$1:A4,Table3[Autor]),0)),\"\")","v":""},{"$f":"COUNTIFS(Table1[Autor],Check!$A5,Table1[Druh],Check!B$1)","v":0},{"$f":"COUNTIFS(Table1[Autor],Check!$A5,Table1[Druh],Check!C$1)","v":0},{"$f":"COUNTIFS(Table1[Autor],Check!$A5,Table1[Druh],Check!D$1)","v":0},0,null,"Česká literatura 20. a 21. stol",5,{"$f":"COUNTIFS(MujSeznam!$C$2:$C$21,\">=20\",MujSeznam!$E$2:$E$21,\"česká\")","v":0}]
[{"$f":"IFERROR(INDEX(Table3[Autor],MATCH(0,COUNTIF($A$1:A5,Table3[Autor]),0)),\"\")","v":""},{"$f":"COUNTIFS(Table1[Autor],Check!$A6,Table1[Druh],Check!B$1)","v":0},{"$f":"COUNTIFS(Table1[Autor],Check!$A6,Table1[Druh],Check!C$1)","v":0},{"$f":"COUNTIFS(Table1[Autor],Check!$A6,Table1[Druh],Check!D$1)","v":0},0,null,"Poezie",2,{"$f":"COUNTIF(MujSeznam!$D$2:$D$21,G6)","v":0}]
[{"$f":"IFERROR(INDEX(Table3[Autor],MATCH(0,COUNTIF($A$1:A6,Table3[Autor]),0)),\"\")","v":""},{"$f":"COUNTIFS(Table1[Autor],Check!$A7,Table1[Druh],Check!B$1)","v":0},{"$f":"COUNTIFS(Table1[Autor],Check!$A7,Table1[Druh],Check!C$1)","v":0},{"$f":"COUNTIFS(Table1[Autor],Check!$A7,Table1[Druh],Check!D$1)","v":0},0,null,"Próza",2,{"$f":"COUNTIF(MujSeznam!$D$2:$D$21,G7)","v":0}]
[{"$f":"IFERROR(INDEX(Table3[Autor],MATCH(0,COUNTIF($A$1:A7,Table3[Autor]),0)),\"\")","v":""},{"$f":"COUNTIFS(Table1[Autor],Check!$A8,Table1[Druh],Check!B$1)","v":0},{"$f":"COUNTIFS(Table1[Autor],Check!$A8,Table1[Druh],Check!C$1)","v":0},{"$f":"COUNTIFS(Table1[Autor],Check!$A8,Table1[Druh],Check!D$1)","v":0},0,null,"Drama",2,{"$f":"COUNTIF(MujSeznam!$D$2:$D$21,G8)","v":0}]
[{"$f":"IFERROR(INDEX(Table3[Autor],MATCH(0,COUNTIF($A$1:A8,Table3[Autor]),0)),\"\")","v":""},{"$f":"COUNTIFS(Table1[Autor],Check!$A9,Table1[Druh],Check!B$1)","v":0},{"$f":"COUNTIFS(Table1[Autor],Check!$A9,Table1[Druh],Check!C$1)","v":0},{"$f":"COUNTIFS(Table1[Autor],Check!$A9,Table1[Druh],Check!D$1)","v":0},0,null,"Celkem",20,{"$f":"IFERROR(SUM(IF(FREQUENCY(MATCH(Table1[Dílo],Table1[Dílo],0),MATCH(Table1[Dílo],Table1[Dílo],0))>0,1)),0)","v":0}]
[{"$f":"IFERROR(INDEX(Table3[Autor],MATCH(0,COUNTIF($A$1:A9,Table3[Autor]),0)),\"\")","v":""},{"$f":"COUNTIFS(Table1[Autor],Check!$A10,Table1[Druh],Check!B$1)","v":0},{"$f":"COUNTIFS(Table1[Autor],Check!$A10,Table1[Druh],Check!C$1)","v":0},{"$f":"COUNTIFS(Table1[Autor],Check!$A10,Table1[Druh],Check!D$1)","v":0},0,null,"Pozn.: V případě, že součet děl neodpovídá, zkontrolujte, zda seznam neobsahuje jedno dílo 2x, nebo zda neobsahuje prázdná pole."]
[{"$f":"IFERROR(INDEX(Table3[Autor],MATCH(0,COUNTIF($A$1:A10,Table3[Autor]),0)),\"\")","v":""},{"$f":"COUNTIFS(Table1[Autor],Check!$A11,Table1[Druh],Check!B$1)","v":0},{"$f":"COUNTIFS(Table1[Autor],Check!$A11,Table1[Druh],Check!C$1)","v":0},{"$f":"COUNTIFS(Table1[Autor],Check!$A11,Table1[Druh],Check!D$1)","v":0},0]
[{"$f":"IFERROR(INDEX(Table3[Autor],MATCH(0,COUNTIF($A$1:A11,Table3[Autor]),0)),\"\")","v":""},{"$f":"COUNTIFS(Table1[Autor],Check!$A12,Table1[Druh],Check!B$1)","v":0},{"$f":"COUNTIFS(Table1[Autor],Check!$A12,Table1[Druh],Check!C$1)","v":0},{"$f":"COUNTIFS(Table1[Autor],Check!$A12,Table1[Druh],Check!D$1)","v":0},0]
[{"$f":"IFERROR(INDEX(Table3[Autor],MATCH(0,COUNTIF($A$1:A12,Table3[Autor]),0)),\"\")","v":""},{"$f":"COUNTIFS(Table1[Autor],Check!$A13,Table1[Druh],Check!B$1)","v":0},{"$f":"COUNTIFS(Table1[Autor],Check!$A13,Table1[Druh],Check!C$1)","v":0},{"$f":"COUNTIFS(Table1[Autor],Check!$A13,Table1[Druh],Check!D$1)","v":0},0]
[{"$f":"IFERROR(INDEX(Table3[Autor],MATCH(0,COUNTIF($A$1:A13,Table3[Autor]),0)),\"\")","v":""},{"$f":"COUNTIFS(Table1[Autor],Check!$A14,Table1[Druh],Check!B$1)","v":0},{"$f":"COUNTIFS(Table1[Autor],Check!$A14,Table1[Druh],Check!C$1)","v":0},{"$f":"COUNTIFS(Table1[Autor],Check!$A14,Table1[Druh],Check!D$1)","v":0},0]
[{"$f":"IFERROR(INDEX(Table3[Autor],MATCH(0,COUNTIF($A$1:A14,Table3[Autor]),0)),\"\")","v":""},{"$f":"COUNTIFS(Table1[Autor],Check!$A15,Table1[Druh],Check!B$1)","v":0},{"$f":"COUNTIFS(Table1[Autor],Check!$A15,Table1[Druh],Check!C$1)","v":0},{"$f":"COUNTIFS(Table1[Autor],Check!$A15,Table1[Druh],Check!D$1)","v":0},0]
[{"$f":"IFERROR(INDEX(Table3[Autor],MATCH(0,COUNTIF($A$1:A15,Table3[Autor]),0)),\"\")","v":""},{"$f":"COUNTIFS(Table1[Autor],Check!$A16,Table1[Druh],Check!B$1)","v":0},{"$f":"COUNTIFS(Table1[Autor],Check!$A16,Table1[Druh],Check!C$1)","v":0},{"$f":"COUNTIFS(Table1[Autor],Check!$A16,Table1[Druh],Check!D$1)","v":0},0]
[{"$f":"IFERROR(INDEX(Table3[Autor],MATCH(0,COUNTIF($A$1:A16,Table3[Autor]),0)),\"\")","v":""},{"$f":"COUNTIFS(Table1[Autor],Check!$A17,Table1[Druh],Check!B$1)","v":0},{"$f":"COUNTIFS(Table1[Autor],Check!$A17,Table1[Druh],Check!C$1)","v":0},{"$f":"COUNTIFS(Table1[Autor],Check!$A17,Table1[Druh],Check!D$1)","v":0},0]
[{"$f":"IFERROR(INDEX(Table3[Autor],MATCH(0,COUNTIF($A$1:A17,Table3[Autor]),0)),\"\")","v":""},{"$f":"COUNTIFS(Table1[Autor],Check!$A18,Table1[Druh],Check!B$1)","v":0},{"$f":"COUNTIFS(Table1[Autor],Check!$A18,Table1[Druh],Check!C$1)","v":0},{"$f":"COUNTIFS(Table1[Autor],Check!$A18,Table1[Druh],Check!D$1)","v":0},0]
[{"$f":"IFERROR(INDEX(Table3[Autor],MATCH(0,COUNTIF($A$1:A18,Table3[Autor]),0)),\"\")","v":""},{"$f":"COUNTIFS(Table1[Autor],Check!$A19,Table1[Druh],Check!B$1)","v":0},{"$f":"COUNTIFS(Table1[Autor],Check!$A19,Table1[Druh],Check!C$1)","v":0},{"$f":"COUNTIFS(Table1[Autor],Check!$A19,Table1[Druh],Check!D$1)","v":0},0]
[{"$f":"IFERROR(INDEX(Table3[Autor],MATCH(0,COUNTIF($A$1:A19,Table3[Autor]),0)),\"\")","v":""},{"$f":"COUNTIFS(Table1[Autor],Check!$A20,Table1[Druh],Check!B$1)","v":0},{"$f":"COUNTIFS(Table1[Autor],Check!$A20,Table1[Druh],Check!C$1)","v":0},{"$f":"COUNTIFS(Table1[Autor],Check!$A20,Table1[Druh],Check!D$1)","v":0},0]
[{"$f":"IFERROR(INDEX(Table3[Autor],MATCH(0,COUNTIF($A$1:A20,Table3[Autor]),0)),\"\")","v":""},{"$f":"COUNTIFS(Table1[Autor],Check!$A21,Table1[Druh],Check!B$1)","v":0},{"$f":"COUNTIFS(Table1[Autor],Check!$A21,Table1[Druh],Check!C$1)","v":0},{"$f":"COUNTIFS(Table1[Autor],Check!$A21,Table1[Druh],Check!D$1)","v":0},0]
["Pozn.: Seznam může obsahovat maximálně dvě díla od jednoho autora."]

{"sheet":"Generator","index":3,"n_rows":53,"n_cols":3,"rows_kept":53,"cut":false,"hidden":false,"merged":[[2,0,2,2],[3,0,3,2],[4,0,4,2],[52,0,52,1]]}
[]
[]
["Jméno a příjmení: xxx"]
["Třída: xx"]
["Školní rok: 20xx/20xx"]
[]
["p. č.","Autor","Název díla"]
["Světová a česká literatura do konce 18. století (minimálně 2 díla)"]
[1,{"$f":"IFERROR(VLOOKUP(C9,SeznamCetby!A$3:E$83,2,FALSE),\"\")","v":""},{"$f":"IFERROR(INDEX(Table3[Dílo],SMALL(IF(Table3[Století]<=18,ROW(Table3[Dílo])-ROW(SerazenySeznam!C$2)+1),ROWS(SerazenySeznam!C$2:'SerazenySeznam'!C2))),\"\")","v":""}]
[{"$f":"IF(NOT(B10=\"\"),A9+1,\"\")","v":""},{"$f":"IFERROR(VLOOKUP(C10,SeznamCetby!A$3:E$83,2,FALSE),\"\")","v":""},{"$f":"IFERROR(INDEX(Table3[Dílo],SMALL(IF(Table3[Století]<=18,ROW(Table3[Dílo])-ROW(SerazenySeznam!C$2)+1),ROWS(SerazenySeznam!C$2:'SerazenySeznam'!C3))),\"\")","v":""}]
[{"$f":"IF(NOT(B11=\"\"),A10+1,\"\")","v":""},{"$f":"IFERROR(VLOOKUP(C11,SeznamCetby!A$3:E$83,2,FALSE),\"\")","v":""},{"$f":"IFERROR(INDEX(Table3[Dílo],SMALL(IF(Table3[Století]<=18,ROW(Table3[Dílo])-ROW(SerazenySeznam!C$2)+1),ROWS(SerazenySeznam!C$2:'SerazenySeznam'!C4))),\"\")","v":""}]
["",{"$f":"IFERROR(VLOOKUP(C12,SeznamCetby!A$3:E$83,2,FALSE),\"\")","v":""},{"$f":"IFERROR(INDEX(Table3[Dílo],SMALL(IF(Table3[Století]<=18,ROW(Table3[Dílo])-ROW(SerazenySeznam!C$2)+1),ROWS(SerazenySeznam!C$2:'SerazenySeznam'!C5))),\"\")","v":""}]
["",{"$f":"IFERROR(VLOOKUP(C13,SeznamCetby!A$3:E$83,2,FALSE),\"\")","v":""},{"$f":"IFERROR(INDEX(Table3[Dílo],SMALL(IF(Table3[Století]<=18,ROW(Table3[Dílo])-ROW(SerazenySeznam!C$2)+1),ROWS(SerazenySeznam!C$2:'SerazenySeznam'!C6))),\"\")","v":""}]
["",{"$f":"IFERROR(VLOOKUP(C14,SeznamCetby!A$3:E$83,2,FALSE),\"\")","v":""},{"$f":"IFERROR(INDEX(Table3[Dílo],SMALL(IF(Table3[Století]<=18,ROW(Table3[Dílo])-ROW(SerazenySeznam!C$2)+1),ROWS(SerazenySeznam!C$2:'SerazenySeznam'!C7))),\"\")","v":""}]
["",{"$f":"IFERROR(VLOOKUP(C15,SeznamCetby!A$3:E$83,2,FALSE),\"\")","v":""},{"$f":"IFERROR(INDEX(Table3[Dílo],SMALL(IF(Table3[Století]<=18,ROW(Table3[Dílo])-ROW(SerazenySeznam!C$2)+1),ROWS(SerazenySeznam!C$2:'SerazenySeznam'!C8))),\"\")","v":""}]
["",{"$f":"IFERROR(VLOOKUP(C16,SeznamCetby!A$3:E$83,2,FALSE),\"\")","v":""},{"$f":"IFERROR(INDEX(Table3[Dílo],SMALL(IF(Table3[Století]<=18,ROW(Table3[Dílo])-ROW(SerazenySeznam!C$2)+1),ROWS(SerazenySeznam!C$2:'SerazenySeznam'!C9))),\"\")","v":""}]
["Světová a česká literatura do konce 19. století (minimálně 3 díla)"]
[{"$f":"MAX(A9:A16)+1","v":2},{"$f":"IFERROR(VLOOKUP(C18,SeznamCetby!A$3:E$83,2,FALSE),\"\")","v":""},{"$f":"IFERROR(INDEX(Table3[Dílo],SMALL(IF(Table3[Století]=19,ROW(Table3[Dílo])-ROW(SerazenySeznam!C$2)+1),ROWS(SerazenySeznam!C$2:'SerazenySeznam'!C2))),\"\")","v":""}]
[{"$f":"IF(NOT(B19=\"\"),A18+1,\"\")","v":""},{"$f":"IFERROR(VLOOKUP(C19,SeznamCetby!A$3:E$83,2,FALSE),\"\")","v":""},{"$f":"IFERROR(INDEX(Table3[Dílo],SMALL(IF(Table3[Století]=19,ROW(Table3[Dílo])-ROW(SerazenySeznam!C$2)+1),ROWS(SerazenySeznam!C$2:'SerazenySeznam'!C3))),\"\")","v":""}]
["",{"$f":"IFERROR(VLOOKUP(C20,SeznamCetby!A$3:E$83,2,FALSE),\"\")","v":""},{"$f":"IFERROR(INDEX(Table3[Dílo],SMALL(IF(Table3[Století]=19,ROW(Table3[Dílo])-ROW(SerazenySeznam!C$2)+1),ROWS(SerazenySeznam!C$2:'SerazenySeznam'!C4))),\"\")","v":""}]
["",{"$f":"IFERROR(VLOOKUP(C21,SeznamCetby!A$3:E$83,2,FALSE),\"\")","v":""},{"$f":"IFERROR(INDEX(Table3[Dílo],SMALL(IF(Table3[Století]=19,ROW(Table3[Dílo])-ROW(SerazenySeznam!C$2)+1),ROWS(SerazenySeznam!C$2:'SerazenySeznam'!C5))),\"\")","v":""}]
["",{"$f":"IFERROR(VLOOKUP(C22,SeznamCetby!A$3:E$83,2,FALSE),\"\")","v":""},{"$f":"IFERROR(INDEX(Table3[Dílo],SMALL(IF(Table3[Století]=19,ROW(Table3[Dílo])-ROW(SerazenySeznam!C$2)+1),ROWS(SerazenySeznam!C$2:'SerazenySeznam'!C6))),\"\")","v":""}]
["",{"$f":"IFERROR(VLOOKUP(C23,SeznamCetby!A$3:E$83,2,FALSE),\"\")","v":""},{"$f":"IFERROR(INDEX(Table3[Dílo],SMALL(IF(Table3[Století]=19,ROW(Table3[Dílo])-ROW(SerazenySeznam!C$2)+1),ROWS(SerazenySeznam!C$2:'SerazenySeznam'!C7))),\"\")","v":""}]
["",{"$f":"IFERROR(VLOOKUP(C24,SeznamCetby!A$3:E$83,2,FALSE),\"\")","v":""},{"$f":"IFERROR(INDEX(Table3[Dílo],SMALL(IF(Table3[Století]=19,ROW(Table3[Dílo])-ROW(SerazenySeznam!C$2)+1),ROWS(SerazenySeznam!C$2:'SerazenySeznam'!C8))),\"\")","v":""}]
["",{"$f":"IFERROR(VLOOKUP(C25,SeznamCetby!A$3:E$83,2,FALSE),\"\")","v":""},{"$f":"IFERROR(INDEX(Table3[Dílo],SMALL(IF(Table3[Století]=19,ROW(Table3[Dílo])-ROW(SerazenySeznam!C$2)+1),ROWS(SerazenySeznam!C$2:'SerazenySeznam'!C9))),\"\")","v":""}]
["",{"$f":"IFERROR(VLOOKUP(C26,SeznamCetby!A$3:E$83,2,FALSE),\"\")","v":""},{"$f":"IFERROR(INDEX(Table3[Dílo],SMALL(IF(Table3[Století]=19,ROW(Table3[Dílo])-ROW(SerazenySeznam!C$2)+1),ROWS(SerazenySeznam!C$2:'SerazenySeznam'!C10))),\"\")","v":""}]
["",{"$f":"IFERROR(VLOOKUP(C27,SeznamCetby!A$3:E$83,2,FALSE),\"\")","v":""},{"$f":"IFERROR(INDEX(Table3[Dílo],SMALL(IF(Table3[Století]=19,ROW(Table3[Dílo])-ROW(SerazenySeznam!C$2)+1),ROWS(SerazenySeznam!C$2:'SerazenySeznam'!C11))),\"\")","v":""}]
["",{"$f":"IFERROR(VLOOKUP(C28,SeznamCetby!A$3:E$83,2,FALSE),\"\")","v":""},{"$f":"IFERROR(INDEX(Table3[Dílo],SMALL(IF(Table3[Století]=19,ROW(Table3[Dílo])-ROW(SerazenySeznam!C$2)+1),ROWS(SerazenySeznam!C$2:'SerazenySeznam'!C12))),\"\")","v":""}]
["Světová 20. a 21. století (minimálně 4 díla)"]
[{"$f":"MAX(A18:A28)+1","v":3},{"$f":"IFERROR(VLOOKUP(C30,SeznamCetby!A$3:E$83,2,FALSE),\"\")","v":""},{"$f":"IFERROR(INDEX(Table3[Dílo],SMALL(IF(((Table3[Století]=20)+(Table3[Století]=21))*(Table3[Česká/Světová]=\"světová\"),ROW(Table3[Dílo])-ROW(SerazenySeznam!C$2)+1),ROWS(SerazenySeznam!C$2:'SerazenySeznam'!C2))),\"\")","v":""}]
[{"$f":"IF(NOT(B31=\"\"),A30+1,\"\")","v":""},{"$f":"IFERROR(VLOOKUP(C31,SeznamCetby!A$3:E$83,2,FALSE),\"\")","v":""},{"$f":"IFERROR(INDEX(Table3[Dílo],SMALL(IF(((Table3[Století]=20)+(Table3[Století]=21))*(Table3[Česká/Světová]=\"světová\"),ROW(Table3[Dílo])-ROW(SerazenySeznam!C$2)+1),ROWS(SerazenySeznam!C$2:'SerazenySeznam'!C3))),\"\")","v":""}]
["",{"$f":"IFERROR(VLOOKUP(C32,SeznamCetby!A$3:E$83,2,FALSE),\"\")","v":""},{"$f":"IFERROR(INDEX(Table3[Dílo],SMALL(IF(((Table3[Století]=20)+(Table3[Století]=21))*(Table3[Česká/Světová]=\"světová\"),ROW(Table3[Dílo])-ROW(SerazenySeznam!C$2)+1),ROWS(SerazenySeznam!C$2:'SerazenySeznam'!C4))),\"\")","v":""}]
["",{"$f":"IFERROR(VLOOKUP(C33,SeznamCetby!A$3:E$83,2,FALSE),\"\")","v":""},{"$f":"IFERROR(INDEX(Table3[Dílo],SMALL(IF(((Table3[Století]=20)+(Table3[Století]=21))*(Table3[Česká/Světová]=\"světová\"),ROW(Table3[Dílo])-ROW(SerazenySeznam!C$2)+1),ROWS(SerazenySeznam!C$2:'SerazenySeznam'!C5))),\"\")","v":""}]
["",{"$f":"IFERROR(VLOOKUP(C34,SeznamCetby!A$3:E$83,2,FALSE),\"\")","v":""},{"$f":"IFERROR(INDEX(Table3[Dílo],SMALL(IF(((Table3[Století]=20)+(Table3[Století]=21))*(Table3[Česká/Světová]=\"světová\"),ROW(Table3[Dílo])-ROW(SerazenySeznam!C$2)+1),ROWS(SerazenySeznam!C$2:'SerazenySeznam'!C6))),\"\")","v":""}]
["",{"$f":"IFERROR(VLOOKUP(C35,SeznamCetby!A$3:E$83,2,FALSE),\"\")","v":""},{"$f":"IFERROR(INDEX(Table3[Dílo],SMALL(IF(((Table3[Století]=20)+(Table3[Století]=21))*(Table3[Česká/Světová]=\"světová\"),ROW(Table3[Dílo])-ROW(SerazenySeznam!C$2)+1),ROWS(SerazenySeznam!C$2:'SerazenySeznam'!C7))),\"\")","v":""}]
["",{"$f":"IFERROR(VLOOKUP(C36,SeznamCetby!A$3:E$83,2,FALSE),\"\")","v":""},{"$f":"IFERROR(INDEX(Table3[Dílo],SMALL(IF(((Table3[Století]=20)+(Table3[Století]=21))*(Table3[Česká/Světová]=\"světová\"),ROW(Table3[Dílo])-ROW(SerazenySeznam!C$2)+1),ROWS(SerazenySeznam!C$2:'SerazenySeznam'!C8))),\"\")","v":""}]
["",{"$f":"IFERROR(VLOOKUP(C37,SeznamCetby!A$3:E$83,2,FALSE),\"\")","v":""},{"$f":"IFERROR(INDEX(Table3[Dílo],SMALL(IF(((Table3[Století]=20)+(Table3[Století]=21))*(Table3[Česká/Světová]=\"světová\"),ROW(Table3[Dílo])-ROW(SerazenySeznam!C$2)+1),ROWS(SerazenySeznam!C$2:'SerazenySeznam'!C9))),\"\")","v":""}]
["",{"$f":"IFERROR(VLOOKUP(C38,SeznamCetby!A$3:E$83,2,FALSE),\"\")","v":""},{"$f":"IFERROR(INDEX(Table3[Dílo],SMALL(IF(((Table3[Století]=20)+(Table3[Století]=21))*(Table3[Česká/Světová]=\"světová\"),ROW(Table3[Dílo])-ROW(SerazenySeznam!C$2)+1),ROWS(SerazenySeznam!C$2:'SerazenySeznam'!C10))),\"\")","v":""}]
["",{"$f":"IFERROR(VLOOKUP(C39,SeznamCetby!A$3:E$83,2,FALSE),\"\")","v":""},{"$f":"IFERROR(INDEX(Table3[Dílo],SMALL(IF(((Table3[Století]=20)+(Table3[Století]=21))*(Table3[Česká/Světová]=\"světová\"),ROW(Table3[Dílo])-ROW(SerazenySeznam!C$2)+1),ROWS(SerazenySeznam!C$2:'SerazenySeznam'!C11))),\"\")","v":""}]
["Česká literatura do konce 20. a 21. století (minimálně 5 děl)"]
[{"$f":"MAX(A30:A39)+1","v":4},{"$f":"IFERROR(VLOOKUP(C41,SeznamCetby!A$3:E$83,2,FALSE),\"\")","v":""},{"$f":"IFERROR(INDEX(Table3[Dílo],SMALL(IF(((Table3[Století]=20)+(Table3[Století]=21))*(Table3[Česká/Světová]=\"česká\"),ROW(Table3[Dílo])-ROW(SerazenySeznam!C$2)+1),ROWS(SerazenySeznam!C$2:'SerazenySeznam'!C2))),\"\")","v":""}]
[{"$f":"IF(NOT(B42=\"\"),A41+1,\"\")","v":""},{"$f":"IFERROR(VLOOKUP(C42,SeznamCetby!A$3:E$83,2,FALSE),\"\")","v":""},{"$f":"IFERROR(INDEX(Table3[Dílo],SMALL(IF(((Table3[Století]=20)+(Table3[Století]=21))*(Table3[Česká/Světová]=\"česká\"),ROW(Table3[Dílo])-ROW(SerazenySeznam!C$2)+1),ROWS(SerazenySeznam!C$2:'SerazenySeznam'!C3))),\"\")","v":""}]
["",{"$f":"IFERROR(VLOOKUP(C43,SeznamCetby!A$3:E$83,2,FALSE),\"\")","v":""},{"$f":"IFERROR(INDEX(Table3[Dílo],SMALL(IF(((Table3[Století]=20)+(Table3[Století]=21))*(Table3[Česká/Světová]=\"česká\"),ROW(Table3[Dílo])-ROW(SerazenySeznam!C$2)+1),ROWS(SerazenySeznam!C$2:'SerazenySeznam'!C4))),\"\")","v":""}]
["",{"$f":"IFERROR(VLOOKUP(C44,SeznamCetby!A$3:E$83,2,FALSE),\"\")","v":""},{"$f":"IFERROR(INDEX(Table3[Dílo],SMALL(IF(((Table3[Století]=20)+(Table3[Století]=21))*(Table3[Česká/Světová]=\"česká\"),ROW(Table3[Dílo])-ROW(SerazenySeznam!C$2)+1),ROWS(SerazenySeznam!C$2:'SerazenySeznam'!C5))),\"\")","v":""}]
["",{"$f":"IFERROR(VLOOKUP(C45,SeznamCetby!A$3:E$83,2,FALSE),\"\")","v":""},{"$f":"IFERROR(INDEX(Table3[Dílo],SMALL(IF(((Table3[Století]=20)+(Table3[Století]=21))*(Table3[Česká/Světová]=\"česká\"),ROW(Table3[Dílo])-ROW(SerazenySeznam!C$2)+1),ROWS(SerazenySeznam!C$2:'SerazenySeznam'!C6))),\"\")","v":""}]
["",{"$f":"IFERROR(VLOOKUP(C46,SeznamCetby!A$3:E$83,2,FALSE),\"\")","v":""},{"$f":"IFERROR(INDEX(Table3[Dílo],SMALL(IF(((Table3[Století]=20)+(Table3[Století]=21))*(Table3[Česká/Světová]=\"česká\"),ROW(Table3[Dílo])-ROW(SerazenySeznam!C$2)+1),ROWS(SerazenySeznam!C$2:'SerazenySeznam'!C7))),\"\")","v":""}]
["",{"$f":"IFERROR(VLOOKUP(C47,SeznamCetby!A$3:E$83,2,FALSE),\"\")","v":""},{"$f":"IFERROR(INDEX(Table3[Dílo],SMALL(IF(((Table3[Století]=20)+(Table3[Století]=21))*(Table3[Česká/Světová]=\"česká\"),ROW(Table3[Dílo])-ROW(SerazenySeznam!C$2)+1),ROWS(SerazenySeznam!C$2:'SerazenySeznam'!C8))),\"\")","v":""}]
["",{"$f":"IFERROR(VLOOKUP(C48,SeznamCetby!A$3:E$83,2,FALSE),\"\")","v":""},{"$f":"IFERROR(INDEX(Table3[Dílo],SMALL(IF(((Table3[Století]=20)+(Table3[Století]=21))*(Table3[Česká/Světová]=\"česká\"),ROW(Table3[Dílo])-ROW(SerazenySeznam!C$2)+1),ROWS(SerazenySeznam!C$2:'SerazenySeznam'!C9))),\"\")","v":""}]
["",{"$f":"IFERROR(VLOOKUP(C49,SeznamCetby!A$3:E$83,2,FALSE),\"\")","v":""},{"$f":"IFERROR(INDEX(Table3[Dílo],SMALL(IF(((Table3[Století]=20)+(Table3[Století]=21))*(Table3[Česká/Světová]=\"česká\"),ROW(Table3[Dílo])-ROW(SerazenySeznam!C$2)+1),ROWS(SerazenySeznam!C$2:'SerazenySeznam'!C10))),\"\")","v":""}]
["",{"$f":"IFERROR(VLOOKUP(C50,SeznamCetby!A$3:E$83,2,FALSE),\"\")","v":""},{"$f":"IFERROR(INDEX(Table3[Dílo],SMALL(IF(((Table3[Století]=20)+(Table3[Století]=21))*(Table3[Česká/Světová]=\"česká\"),ROW(Table3[Dílo])-ROW(SerazenySeznam!C$2)+1),ROWS(SerazenySeznam!C$2:'SerazenySeznam'!C11))),\"\")","v":""}]
["",{"$f":"IFERROR(VLOOKUP(C51,SeznamCetby!A$3:E$83,2,FALSE),\"\")","v":""},{"$f":"IFERROR(INDEX(Table3[Dílo],SMALL(IF(((Table3[Století]=20)+(Table3[Století]=21))*(Table3[Česká/Světová]=\"česká\"),ROW(Table3[Dílo])-ROW(SerazenySeznam!C$2)+1),ROWS(SerazenySeznam!C$2:'SerazenySeznam'!C12))),\"\")","v":""}]
[]
["Datum: xx.xx. xxxx",null,"Podpis:"]

{"sheet":"SeznamCetby","index":4,"n_rows":83,"n_cols":5,"rows_kept":83,"cut":false,"hidden":false,"merged":[[0,0,0,4]]}
["Platnost seznamu: od začátku školního roku 2019/2020"]
["Název díla","Autor","Století","Druh","Původ"]
["-","-","-","-","-"]
["Dekameron","Boccaccio Giovanni",14,"próza","světová"]
["Robinson Crusoe","Defoe Daniel",18,"próza","světová"]
["Labyrint světa a ráj srdce","Komenský Jan Amos",17,"próza","česká"]
["Lakomec","Moliére",17,"drama","světová"]
["Romeo a Julie","Shakespeare William",16,"drama","světová"]
["Zkrocení zlé ženy","Shakespeare William",16,"drama","světová"]
["Svatý Xaverius","Arbes Jakub",19,"próza","česká"]
["Otec Goriot","Balzac Honore de",19,"próza","světová"]
["Tyrolské elegie","Borovský Karel Havlíček",19,"poezie","česká"]
["Nový epochální výlet pana Broučka, tentokráte do XV. století","Čech Svatopluk",19,"próza","česká"]
["Kytice","Erben Karel Jaromír",19,"poezie","česká"]
["Revizor","Gogol Nikolaj Vasiljevič",19,"drama","světová"]
["Chrám Matky Boží v Paříži","Hugo Victor",19,"próza","světová"]
["Staré pověsti české","Jirásek Alois",19,"próza","česká"]
["Máj","Mácha Karel Hynek",19,"poezie","česká"]
["Kulička","Maupassant Guy de",19,"próza","světová"]
["Maryša","Mrštíkové Alois a Vilém",19,"drama","česká"]
["Babička","Němcová Božena",19,"próza","česká"]
["Povídky malostranské","Neruda Jan",19,"próza","česká"]
["Jáma a kyvadlo","Poe Edgar Alan",19,"próza","světová"]
["Piková dáma","Puškin Alexandr Sergejevič",19,"próza","světová"]
["Dobrodružství Toma Sawyera","Twain Mark",19,"próza","světová"]
["Strakonický dudák","Tyl Josef Kajetán",19,"drama","česká"]
["Radúz a Mahulena","Zeyer Julius",19,"drama","světová"]
["Most přes řeku Kwai","Boulle Pierre",20,"próza","světová"]
["451 stupňů Fahrenheita","Bradbury Ray",20,"próza","světová"]
["Vesmírná odysea","Clarke Arthur C.",20,"próza","světová"]
["Malý princ","Exupéry Antoine de Saint",20,"próza","světová"]
["Velký Gatsby","Fitzgerald Francis Scott",20,"próza","světová"]
["Stařec a moře","Hemingway Ernest",20,"próza","světová"]
["Komu zvoní hrana","Hemingway Ernest",20,"próza","světová"]
["Na cestě","Kerouac Jack",20,"próza","světová"]
["Vyhoďme ho z kola ven","Kesey Ken",20,"próza","světová"]
["Mario a kouzelník","Mann Thomas",20,"próza","světová"]
["Smrt je mým řemeslem","Merle Robert",20,"próza","světová"]
["Farma zvířat","Orwell George",20,"próza","světová"]
["Na západní frontě klid","Remarque Erich Maria",20,"próza","světová"]
["Tři kamarádi","Remarque Erich Maria",20,"próza","světová"]
["Petr a Lucie","Rolland Romain",20,"próza","světová"]
["Harry Potter a Kámen mudrců","Rowlingová Joanne",20,"próza","světová"]
["Jak jsem vyhrál válku","Ryan Patrick",20,"próza","světová"]
["Pygmalion","Shaw George Bernard",20,"drama","světová"]
["O myších a lidech","Steinbeck John",20,"próza","světová"]
["Sophiina volba","Styron  William",20,"próza","světová"]
["Pán prstenů: Společenstvo prstenu","Tolkien J.R.R.",20,"próza","světová"]
["Slezské písně","Bezruč Petr",20,"poezie","česká"]
["Válka s mloky","Čapek Karel",20,"próza","česká"]
["Matka","Čapek Karel",20,"drama","česká"]
["R.U.R.","Čapek Karel",20,"drama","česká"]
["Bílá nemoc","Čapek Karel",20,"drama","česká"]
["Deník Anny Frankové","Franková Anne",20,"próza","světová"]
["Vizionář","Divadlo Járy Cimrmana (Smoljak/Svěrák)",20,"drama","česká"]
["Němá barikáda","Drda Jan",20,"próza","česká"]
["Krysař","Dyk Viktor",20,"próza","česká"]
["Spalovač mrtvol","Fuks Ladislav",20,"próza","česká"]
["Pan Theodor Mundstock","Fuks Ladislav",20,"próza","česká"]
["Osudy dobrého vojáka Švejka za světové války (1. díl)","Hašek Jaroslav",20,"próza","česká"]
["Audience","Havel Václav",20,"drama","česká"]
["Obsluhoval jsem anglického krále","Hrabal Bohumil",20,"próza","česká"]
["Ostře sledované vlaky","Hrabal Bohumil",20,"próza","česká"]
["Postřižiny","Hrabal Bohumil",20,"próza","česká"]
["Romance pro křídlovku","Hrubín František",20,"poezie","česká"]
["Saturnin","Jirotka Zdeněk",20,"próza","česká"]
["Memento","John Radek",20,"próza","česká"]
["Proměna","Kafka Franz",20,"próza","česká"]
["Kladivo na čarodějnice","Kaplický Václav",20,"próza","česká"]
["Žert","Kundera Milan",20,"próza","česká"]
["Modlitba pro Kateřinu Horowitzovou","Lustig Arnošt",20,"próza","česká"]
["Edison","Nezval Vítězslav",20,"poezie","česká"]
["Romeo,  Julie a tma","Otčenášek Jan",20,"próza","česká"]
["Smrt krásných srnců","Pavel Ota",20,"próza","česká"]
["Bylo nás pět","Poláček Karel",20,"próza","česká"]
["Maminka","Seifert Jaroslav",20,"poezie","česká"]
["Zbabělci","Škvorecký Josef",20,"próza","česká"]
["Prima sezóna","Škvorecký Josef",20,"próza","česká"]
["Výchova dívek v Čechách","Viewegh Michal",20,"próza","česká"]
["Báječná léta pod psa","Viewegh Michal",20,"próza","česká"]
["Caesar","Voskovec  Jiří, Werich Jan",20,"drama","česká"]
["Noc na Karlštejně","Vrchlický Jaroslav",19,"drama","česká"]
["Těžká hodina","Wolker Jiří",20,"poezie","česká"]

{"sheet":"Poznamky","index":5,"n_rows":16,"n_cols":2,"rows_kept":16,"cut":false,"hidden":false,"merged":[]}
["Verze:","3.3"]
["Autor:","Jakub Vašíček (github.com/jakubvasi)"]
[]
["Použití: "]
["Tento dokument slouží pro automatickou tvorbu maturitního seznamu."]
["Pro jeho správnou funkci je třeba při prvním spuštění povolit makra."]
["Na prvním listu stačí v libovolném pořadí vyplnit sloupec \"Dílo\". Zbytek se doplní automaticky."]
["Druhý list slouží pro kontrolu, zda seznam splňuje všechny podmínky."]
["Pokud je vše v pořádku, stačí přepnout na list \"Generator\", vyplnit své iniciály, aktuální datum a list vytisknout."]
[]
[]
["Technické poznámky:"]
["Makra slouží především pro automatické generování tabulky na listu Generator."]
["Dále je pomocí maker celý dokument chráněn proti nechtěným úpravám."]
["Při nechtěném přepsání některé z funkcí by se měl automaticky provést krok zpět."]
["V případě technických úprav dokumentu je třeba tyto makra dočasně zakomentovat, nebo upravovanou buňku odemknout."]